bitfinex/quotes_ETHUSD_20240820
["timestamp","ask_amount","ask_price","bid_price","bid_amount"]
[1724134981095,2.3429,2681.9,2681.4,3.72931]
[1724134981096,11.914629,2681.9,2681.4,3.72931]
[1724134981298,11.914629,2681.9,2681.5,0.80354545]
[1724134981496,11.914629,2681.9,2681.5,3.72924]
[1724134981693,11.914629,2681.9,2681.6,0.80355104]
[1724134982001,1.563,2681.7,2681.4,7.4586]
[1724134982214,1.563,2681.7,2681.5,0.80354545]
[1724134982399,1.563,2681.7,2681.6,0.80354545]
[1724134984443,1.563,2681.7,2681.4,3.72929]
[1724134984649,1.563,2681.7,2681.5,0.8035547]
[1724134984854,1.563,2681.7,2681.4,3.72929]
[1724134985024,1.563,2681.7,2681.5,0.80355477]
[1724134985352,1.563,2681.7,2681.4,3.72929]
[1724134985565,1.563,2681.7,2681.5,0.80355335]
[1724134985854,1.563,2681.7,2681.3,3.72949]
[1724134986061,1.563,2681.7,2681.4,0.80356252]
[1724134986349,2.99935,2681.7,2681.3,3.72949]
[1724134986565,2.99935,2681.7,2681.4,0.80357525]
[1724134986841,2.99935,2681.7,2681.3,3.72949]
[1724134987039,1.563,2681.7,2681.4,0.80356667]
[1724134987267,1.563,2681.7,2681.3,3.72949]
[1724134987473,1.563,2681.7,2681.4,0.80356678]
[1724134987623,1.563,2681.7,2681.3,3.72949]
[1724134987824,1.563,2681.7,2681.4,0.80356995]
[1724134988038,1.563,2681.7,2681.3,3.72949]
[1724134988232,1.563,2681.7,2681.4,0.80357016]
[1724134988458,1.563,2681.7,2681.3,3.72949]
[1724134988767,1.563,2681.7,2681.4,0.80356675]
[1724134988926,1.563,2681.7,2681.5,0.80356675]
[1724134989123,6.72834,2681.7,2681.2,1.21829938]
[1724134989338,1.563,2681.5,2681.2,1.21829938]
[1724134989542,1.563,2681.5,2681.3,0.80357983]
[1724134989836,1.563,2681.5,2681.1,12.36809938]
[1724134990048,1.563,2681.5,2681.2,0.80359225]
[1724134990237,1.563,2681.5,2681.3,0.80359225]
[1724134990569,1.563,2681.5,2681.4,0.80358833]
[1724134990925,1.563,2681.5,2681.1,11.1498]
[1724134991125,1.563,2681.5,2681.4,0.23816764]
[1724134991472,1.563,2681.5,2681.4,1.04176005]
[1724134992971,1.563,2681.5,2681.4,0.23816764]
[1724134993180,2.707907,2681.5,2681.4,0.23816764]
[1724134993373,2.707907,2681.5,2681.1,3.7298]
[1724134993685,1.563,2681.5,2681.1,3.7298]
[1724134993829,1.563,2681.5,2681.2,1.04197367]
[1724134994034,1.563,2681.5,2681.3,0.8035894]
[1724134994274,1.563,2681.5,2681.1,4.94814079]
[1724134994275,1.563,2681.5,2681.4,0.23816764]
[1724134994578,1.563,2681.5,2681.1,4.94814079]
[1724134994791,1.563,2681.5,2681.4,0.23816764]
[1724134995073,2.707907,2681.5,2681.4,0.23816764]
[1724134995274,2.707907,2681.5,2681.1,3.7298]
[1724134995571,1.563,2681.5,2681.2,1.04198037]
[1724134995783,3.0,2681.9,2681.3,0.8035961]
[1724134995930,1.563,2681.8,2681.5,3.72922]
[1724134996274,1.563,2681.8,2681.6,1.04152297]
[1724134996476,3.0,2681.9,2681.6,0.23797582]
[1724134996977,1.563,2681.8,2681.6,0.23797582]
[1724134997332,1.563,2681.8,2681.4,3.72937]
[1724134997659,1.563,2681.8,2681.5,0.80356133]
[1724134997865,1.563,2681.8,2681.6,0.23797582]
[1724134998032,1.563,2681.8,2681.4,3.72937]
[1724134998234,1.563,2681.8,2681.7,0.23786753]
[1724134998490,3.1119999,2681.8,2681.4,3.72937]
[1724134998683,3.1119999,2681.8,2681.5,0.80356412]
[1724134998972,3.1119999,2681.8,2681.5,0.23808412]
[1724134999958,1.563,2681.6,2681.5,0.23808412]
[1724135000298,7.73201,2681.6,2681.2,3.72956]
[1724135000462,7.73201,2681.6,2681.5,0.23807442]
[1724135000659,1.563,2681.6,2681.2,3.72956]
[1724135000986,1.563,2681.6,2681.5,0.23808949]
[1724135001495,8.593412,2681.6,2681.2,4.9478928]
[1724135001696,8.593412,2681.6,2681.5,0.23808949]
[1724135001841,8.593412,2681.6,2681.2,3.72956]
[1724135002045,8.593412,2681.6,2681.1,2.2883]
[1724135002046,8.593412,2681.6,2681.5,0.23808949]
[1724135002327,3.72926,2681.5,2681.0,5.67462185]
[1724135002542,3.72926,2681.5,2681.1,3.3184772]
[1724135002701,3.72926,2681.5,2681.2,0.8035979]
[1724135002702,4.9615162,2681.5,2681.2,0.8035979]
[1724135002906,4.9615162,2681.5,2680.8,11.15014]
[1724135002907,7.64623,2681.3,2680.8,11.15014]
[1724135003124,7.64623,2681.3,2680.9,3.3186662]
[1724135003125,3.9167,2681.3,2680.9,3.3186662]
[1724135003291,3.9167,2681.3,2681.0,0.80363052]
[1724135003494,1.563,2681.5,2681.1,0.80363052]
[1724135003794,1.563,2681.5,2681.2,0.80363052]
[1724135004024,1.563,2681.5,2681.3,0.80363052]
[1724135004232,1.563,2681.5,2681.1,3.72974]
[1724135004438,1.563,2681.5,2681.2,0.8035978]
[1724135004645,1.563,2681.5,2681.3,0.8035978]
[1724135004932,1.563,2681.5,2681.3,3.72953]
[1724135005704,2.4795,2681.8,2681.4,3.72939]
[1724135005903,2.3221,2682.3,2681.8,3.72883]
[1724135006092,1.563,2681.9,2681.8,3.72883]
[1724135006289,3.0,2682.1,2681.9,0.23768221]
[1724135006546,1.563,2682.0,2681.8,3.96662048]
[1724135006848,1.563,2682.0,2681.6,7.45808]
[1724135007006,1.563,2682.0,2681.8,3.72876]
[1724135007743,2.1170829,2682.0,2681.8,3.72876]
[1724135008307,2.1170829,2682.0,2681.9,3.72869]
[1724135008517,1.563,2682.0,2681.9,7.45738]
[1724135008847,2.3221,2682.3,2682.2,3.72828]
[1724135009028,3.8851,2682.3,2682.2,7.45656]
[1724135009345,1.563,2682.3,2682.2,7.45656]
[1724135009690,1.563,2682.5,2682.4,7.45587]
[1724135010143,2.2922,2683.1,2682.7,3.72752]
[1724135010414,1.563,2682.8,2682.7,7.4551]
[1724135011151,1.563,2682.8,2682.7,3.72752]
[1724135012313,2.2673,2683.5,2683.1,3.72701]
[1724135012630,2.294,2683.1,2682.9,3.72729]
[1724135012831,1.563,2683.0,2682.9,3.72729]
[1724135015349,3.0,2683.3,2682.9,3.72729]
[1724135015664,0.18305096,2684.3,2682.9,3.72729]
[1724135015665,1.563,2683.5,2683.4,3.72661]
[1724135015876,1.9473,2683.5,2683.3,3.72666]
[1724135016034,2.28,2683.4,2682.9,7.42]
[1724135016237,5.6738,2683.5,2682.7,19.74504]
[1724135016238,4.0219,2683.0,2682.7,3.7275]
[1724135016433,1.563,2682.9,2682.7,3.7275]
[1724135019415,1.563,2682.9,2682.8,3.72744]
[1724135020170,1.563,2682.9,2682.7,7.455]
[1724135020369,1.563,2682.9,2682.8,3.72744]
[1724135020565,2.4589,2683.0,2682.9,3.72731]
[1724135020806,1.563,2683.1,2682.9,3.72731]
[1724135021005,1.563,2683.1,2682.7,3.7275]
[1724135021212,5.4831,2683.4,2682.9,0.23641253]
[1724135021213,7.45363,2683.3,2682.9,0.23641253]
[1724135021522,1.563,2683.0,2682.8,0.23652072]
[1724135021733,1.563,2683.0,2682.7,3.72748]
[1724135021882,4.0461,2683.0,2682.7,3.72748]
[1724135022788,4.0461,2683.0,2682.8,3.72742]
[1724135023688,4.0461,2683.0,2682.7,7.45498]
[1724135024012,4.0461,2683.0,2682.7,3.72748]
[1724135024212,1.563,2682.8,2682.7,3.72748]
[1724135025002,1.563,2682.8,2682.4,11.14796]
[1724135025181,3.8211,2682.6,2682.4,11.14796]
[1724135025385,3.8211,2682.6,2682.4,7.42]
[1724135026139,1.563,2682.6,2682.5,3.72786]
[1724135030139,1.563,2682.6,2682.4,3.728]
[1724135031697,1.563,2682.6,2682.5,3.72786]
[1724135032041,1.563,2682.8,2682.7,3.72758]
[1724135032894,1.563,2682.8,2682.5,7.45558]
[1724135033096,1.563,2682.8,2682.6,3.72771]
[1724135034025,1.563,2682.8,2682.5,3.72785]
[1724135034190,2.323538,2682.8,2682.5,3.72785]
[1724135034639,2.323538,2682.8,2682.6,3.72771]
[1724135034939,1.563,2682.8,2682.6,3.72771]
[1724135036046,4.0451,2682.8,2682.7,0.23648765]
[1724135037643,4.0451,2682.8,2682.7,3.96406765]
[1724135038402,1.563,2682.8,2682.7,3.96406765]
[1724135042858,5.322,2683.0,2682.8,3.72742]
[1724135043004,1.563,2682.9,2682.8,3.72742]
[1724135043409,1.563,2682.9,2682.8,0.23634501]
[1724135043410,3.9557,2682.9,2682.8,0.23634501]
[1724135043645,4.35127,2682.9,2682.8,0.23634501]
[1724135043881,4.35127,2682.9,2682.6,3.72759]
[1724135044046,2.78827,2682.9,2682.8,0.23634501]
[1724135044230,4.35127,2682.9,2682.7,0.23645321]
[1724135044430,2.78827,2682.9,2682.8,0.23634501]
[1724135044729,2.78827,2682.9,2682.6,3.72759]
[1724135044974,1.563,2682.7,2682.6,3.72759]
[1724135045695,2.4061,2682.6,2682.4,7.45583]
[1724135045986,1.563,2682.7,2682.6,3.72772]
[1724135046187,1.563,2682.7,2682.5,3.72786]
[1724135047232,3.8491,2682.8,2682.5,3.72786]
[1724135047825,1.563,2682.6,2682.5,3.72786]
[1724135048031,1.563,2682.6,2682.5,4.53127174]
[1724135048278,1.563,2682.6,2682.5,3.72786]
[1724135048576,1.563,2682.6,2682.5,4.53127697]
[1724135048931,1.563,2682.6,2682.5,3.72786]
[1724135049134,1.563,2682.6,2682.5,4.5312752]
[1724135050365,3.9822,2682.6,2682.4,3.72792]
[1724135050530,3.9822,2682.6,2682.4,7.45584]
[1724135050729,3.9822,2682.6,2682.4,3.72792]
[1724135050989,3.9822,2682.6,2682.5,0.23666964]
[1724135051882,3.9822,2682.6,2682.5,3.96452964]
[1724135052695,3.9822,2682.6,2682.5,0.23666964]
[1724135052861,3.9822,2682.6,2682.5,3.96452964]
[1724135053862,2.4192,2682.6,2682.5,3.96452964]
[1724135054372,2.4192,2682.6,2682.5,4.76795059]
[1724135055454,2.4192,2682.6,2682.5,3.96452964]
[1724135055805,2.4192,2682.6,2682.5,4.76795069]
[1724135055979,2.4192,2682.6,2682.5,4.76795086]
[1724135056183,2.4192,2682.6,2682.5,3.96452964]
[1724135057261,2.4192,2682.6,2682.5,4.76794943]
[1724135058579,2.4192,2682.6,2682.5,3.96452964]
[1724135059108,2.81742,2682.6,2682.5,0.23666964]
[1724135059266,6.54514,2682.6,2682.5,0.23666964]
[1724135059464,3.72789,2682.5,2682.0,11.14855]
[1724135059810,1.563,2682.2,2682.1,0.80347228]
[1724135060185,1.563,2682.2,2682.0,3.72855]
[1724135061993,3.9064,2682.2,2681.9,19.87]
[1724135062197,1.563,2682.0,2681.9,19.87]
[1724135064613,3.7289,2681.8,2681.3,9.8032]
[1724135064829,1.563,2681.5,2681.3,7.4589]
[1724135064974,1.563,2681.5,2681.3,3.72944]
[1724135065520,1.563,2681.5,2681.1,6.11292]
[1724135065521,1.563,2681.5,2681.1,6.11287]
[1724135065982,1.563,2681.7,2681.4,3.72931]
[1724135066408,1.563,2681.7,2681.5,0.23789112]
[1724135067009,1.563,2682.0,2681.6,3.72903]
[1724135067206,1.563,2682.0,2681.7,3.72887]
[1724135067410,1.563,2682.0,2681.7,3.96656069]
[1724135067619,2.4029,2682.0,2681.7,0.23769069]
[1724135067810,1.563,2681.8,2681.7,0.23769069]
[1724135068220,1.563,2681.8,2681.5,3.72921]
[1724135068530,1.563,2681.8,2681.7,0.23768962]
[1724135068681,1.563,2681.8,2681.6,0.2377979]
[1724135068889,2.64319,2682.0,2681.7,0.23768962]
[1724135069101,1.563,2681.8,2681.7,0.23768962]
[1724135069602,1.563,2681.8,2681.5,3.72921]
[1724135069798,1.563,2681.8,2681.2,0.80354542]
[1724135069799,10.655743,2681.8,2681.7,0.23768962]
[1724135070036,9.86254,2681.7,2681.6,0.22989078]
[1724135070192,2.4046,2681.3,2681.0,7.42]
[1724135070541,1.563,2681.2,2681.0,7.42]
[1724135070828,1.563,2681.2,2680.8,6.018]
[1724135072426,1.563,2681.2,2680.9,3.73005]
[1724135072598,3.72918,2681.6,2680.8,2.2878]
[1724135072803,1.563,2681.5,2681.1,3.72968]
[1724135073006,1.563,2681.5,2681.1,6.20298]
[1724135073305,1.563,2681.5,2681.2,3.72964]
[1724135073501,2.4671,2681.9,2681.6,3.72903]
[1724135073743,3.72841,2682.2,2681.6,7.45805]
[1724135073744,1.563,2682.0,2681.6,7.45805]
[1724135073885,1.563,2682.0,2681.7,3.72887]
[1724135074536,3.72841,2682.2,2681.7,3.72887]
[1724135074842,3.72762,2682.7,2681.7,3.72887]
[1724135074843,6.19429,2683.0,2681.8,2.4733]
[1724135075002,6.19429,2683.0,2682.4,3.72789]
[1724135075003,2.4671,2683.0,2682.4,3.72789]
[1724135075193,2.4671,2683.0,2682.5,3.72777]
[1724135075393,6.813769,2683.0,2682.3,2.4733]
[1724135075701,6.813769,2683.0,2682.3,6.20135]
[1724135075902,3.72734,2682.9,2682.4,3.72799]
[1724135076233,3.72734,2682.9,2682.2,7.45633]
[1724135076533,3.72774,2682.6,2682.1,6.07061]
[1724135076736,6.14744,2682.6,2682.1,6.07061]
[1724135077430,2.4197,2682.6,2682.1,6.07061]
[1724135077744,3.72747,2682.8,2682.3,3.72813]
[1724135077891,2.4487,2682.8,2682.3,3.72813]
[1724135078231,2.4487,2682.8,2682.3,3.72805]
[1724135078530,2.4487,2682.8,2682.4,3.72792]
[1724135078833,6.72733,2682.9,2682.4,3.72792]
[1724135079394,3.0,2682.9,2682.4,3.72792]
[1724135079596,3.0,2682.9,2682.5,3.72778]
[1724135079833,3.0,2682.9,2682.5,3.72777]
[1724135080735,0.5844482,2683.0,2682.9,7.45462]
[1724135080932,2.3172,2683.8,2683.3,3.72664]
[1724135081292,6.04336,2683.8,2683.4,0.22819183]
[1724135081494,3.72637,2683.6,2683.4,0.22819183]
[1724135081848,4.47173,2683.5,2682.9,3.7272]
[1724135082146,6.07025,2683.4,2682.9,3.7272]
[1724135082304,3.72689,2683.2,2682.7,3.72751]
[1724135082505,9.79698,2683.4,2682.7,3.72751]
[1724135082726,9.79698,2683.4,2682.7,7.45501]
[1724135082929,9.79698,2683.4,2682.6,2.4789]
[1724135082930,1.054224,2683.3,2682.9,7.45451]
[1724135083129,2.3436,2683.4,2682.9,3.72722]
[1724135083348,2.3436,2683.4,2683.0,3.72712]
[1724135085366,2.3436,2683.4,2683.1,3.72702]
[1724135085566,5.4292,2683.8,2683.2,3.72677]
[1724135085727,0.54292,2683.7,2683.2,3.72677]
[1724135086052,7.26913,2683.7,2683.1,3.72702]
[1724135087179,7.26913,2683.7,2683.1,3.72695]
[1724135087376,7.26913,2683.7,2683.1,7.45389]
[1724135087528,5.98238,2683.5,2682.9,7.45444]
[1724135087742,5.98238,2683.5,2682.9,3.72722]
[1724135088081,3.72662,2683.4,2682.9,3.72722]
[1724135091844,5.98228,2683.5,2682.9,3.72722]
[1724135093293,2.2558,2683.5,2683.0,3.72703]
[1724135093497,3.0,2683.5,2683.2,3.72683]
[1724135093795,1.0520553,2683.5,2683.1,3.72691]
[1724135094147,1.0520553,2683.5,2683.1,7.45385]
[1724135094348,1.0520553,2683.5,2683.1,3.72691]
[1724135095597,0.50218883,2683.4,2683.1,3.72691]
[1724135096094,0.50218883,2683.4,2683.2,0.22080187]
[1724135097053,2.4085,2683.3,2683.2,0.22080187]
[1724135097454,2.4085,2683.3,2682.9,3.7272]
[1724135097697,2.4085,2683.3,2683.2,0.22078657]
[1724135097902,2.4085,2683.3,2682.9,3.7272]
[1724135098088,2.4085,2683.3,2683.2,0.22078657]
[1724135098291,3.37221788,2683.3,2682.9,7.45442]
[1724135098492,3.37221788,2683.3,2683.2,0.22078657]
[1724135098660,3.37221788,2683.3,2682.9,7.45442]
[1724135098855,3.37221788,2683.3,2683.2,0.22078657]
[1724135099402,3.37221788,2683.3,2682.9,3.7272]
[1724135099569,2.4085,2683.3,2683.1,3.72694]
[1724135099770,3.0,2683.5,2683.2,0.22078657]
[1724135100359,3.0,2683.7,2683.3,3.72675]
[1724135100562,3.0,2683.7,2683.4,0.22057026]
[1724135100858,3.917945,2683.7,2683.4,0.22057026]
[1724135101057,3.0,2683.7,2683.4,3.94710026]
[1724135101288,2.4533,2684.1,2683.6,3.72633]
[1724135101489,3.72578,2684.0,2683.4,3.94706026]
[1724135101799,3.72578,2684.0,2683.4,3.72649]
[1724135102098,3.72578,2684.0,2683.5,0.22046212]
[1724135102299,4.716241,2684.0,2683.5,0.22046212]
[1724135102484,4.716241,2684.0,2683.5,3.94692212]
[1724135102810,3.0,2683.9,2683.5,3.94692212]
[1724135103199,3.0,2683.9,2683.5,0.22046212]
[1724135103515,13.64986,2683.6,2683.5,0.22046212]
[1724135103690,3.72731,2682.9,2682.3,2.3778]
[1724135103873,3.72731,2682.9,2682.2,0.80334985]
[1724135103874,3.72748,2682.8,2682.2,3.7282]
[1724135104088,3.72748,2682.8,2682.4,0.21441132]
[1724135104291,3.72748,2682.8,2682.3,3.94264955]
[1724135104491,12.89971,2683.0,2682.5,0.2143031]
[1724135104693,3.0,2682.9,2682.4,3.94239132]
[1724135104890,3.0,2682.9,2682.6,0.21419488]
[1724135105123,3.0,2682.9,2682.5,0.21434371]
[1724135105329,6.72731,2682.9,2682.7,0.21412729]
[1724135105529,6.72731,2682.9,2682.6,0.2142355]
[1724135105824,6.72731,2682.9,2682.7,0.21412729]
[1724135106198,3.0,2682.9,2682.4,3.72798]
[1724135106402,3.0,2682.9,2682.6,2.3778]
[1724135106718,3.0,2682.9,2682.7,0.21412729]
[1724135107701,3.0,2683.1,2682.7,0.21412729]
[1724135107934,7.644247,2683.1,2682.7,0.21412729]
[1724135110009,3.72717,2683.0,2682.7,0.21412729]
[1724135110203,3.0,2682.9,2682.7,0.21412729]
[1724135114912,6.72732,2682.9,2682.7,0.21412729]
[1724135117750,7.45488,2682.8,2682.7,0.21412729]
[1724135117962,11.749638,2682.8,2682.7,0.21412729]
[1724135118127,3.72767,2682.7,2682.3,7.42]
[1724135119161,3.72767,2682.7,2682.2,6.08428]
[1724135123152,3.0,2682.8,2682.3,3.72813]
[1724135123336,3.0,2682.8,2682.3,3.72803]
[1724135123537,3.0,2683.0,2682.3,3.72803]
[1724135123763,3.72734,2682.9,2682.3,3.72803]
[1724135123929,3.0,2682.8,2682.3,3.72803]
[1724135124762,3.0,2682.8,2682.3,7.4561]
[1724135124969,3.0,2682.8,2682.3,3.72803]
[1724135126140,3.0,2682.8,2682.4,0.21098933]
[1724135126467,6.72745,2682.8,2682.4,0.21098933]
[1724135126826,3.72774,2682.6,2682.4,0.21098933]
[1724135127143,3.72774,2682.6,2682.2,6.08437]
[1724135127621,3.72774,2682.6,2682.3,0.21109756]
[1724135127825,3.72759,2682.7,2682.3,0.21109756]
[1724135128054,3.72759,2682.7,2682.2,6.08437]
[1724135128254,3.72759,2682.7,2682.4,0.21098933]
[1724135128424,3.72759,2682.7,2682.3,0.21109756]
[1724135128641,3.72759,2682.7,2682.2,6.08437]
[1724135128854,3.72759,2682.7,2682.3,0.21109756]
[1724135129230,3.72759,2682.7,2682.2,6.08437]
[1724135129433,3.72759,2682.7,2682.3,0.21109756]
[1724135129632,3.72759,2682.7,2682.2,6.08437]
[1724135129832,3.72759,2682.7,2682.3,0.21109756]
[1724135130093,3.72759,2682.7,2682.2,6.08437]
[1724135130404,3.72759,2682.7,2682.4,0.21098933]
[1724135130541,3.72759,2682.7,2682.3,0.21109756]
[1724135130939,8.29051,2682.8,2682.3,3.7281]
[1724135131149,6.05473,2683.1,2682.4,0.21098933]
[1724135131324,6.05473,2683.1,2682.5,6.02967]
[1724135131325,4.563,2683.0,2682.5,6.02967]
[1724135131523,8.29017,2683.0,2682.5,6.02967]
[1724135131741,8.29017,2683.0,2682.6,0.21078462]
[1724135132939,3.72732,2682.9,2682.6,0.21078462]
[1724135133343,3.72732,2682.9,2682.4,3.728]
[1724135133540,7.45471,2682.9,2682.4,3.728]
[1724135133783,1.563,2682.8,2682.5,0.21089284]
[1724135135706,1.563,2682.8,2682.5,3.93875284]
[1724135136876,4.563,2683.0,2682.5,3.93875284]
[1724135137382,4.563,2683.0,2682.5,3.93868284]
[1724135137586,3.0,2683.0,2682.5,3.93864284]
[1724135137798,3.0,2683.1,2682.7,3.72758]
[1724135137976,6.72699,2683.2,2682.8,0.21056821]
[1724135138172,6.72699,2683.2,2682.7,3.72758]
[1724135138371,10.45398,2683.2,2682.8,1.01391618]
[1724135138574,3.72705,2683.1,2682.8,0.21056821]
[1724135138806,3.72705,2683.1,2682.6,6.21701]
[1724135139010,3.72705,2683.1,2682.7,0.80336634]
[1724135139011,5.29005,2683.1,2682.7,0.80336634]
[1724135139211,6.335454,2683.1,2682.7,0.21067641]
[1724135140023,5.29032,2682.9,2682.7,0.21067641]
[1724135140162,5.29032,2682.9,2682.4,3.72799]
[1724135140367,5.29032,2682.9,2682.5,0.80340834]
[1724135140664,5.29032,2682.9,2682.5,0.21089284]
[1724135144181,5.29032,2682.9,2682.5,3.93874284]
[1724135145435,1.563,2682.9,2682.5,3.93874284]
[1724135145908,1.563,2682.9,2682.6,3.30038855]
[1724135146110,1.563,2682.9,2682.6,0.80338855]
[1724135146280,2.335888,2682.9,2682.7,0.21003749]
[1724135146808,2.335888,2682.9,2682.4,6.22499]
[1724135146809,6.063278,2682.9,2682.8,0.20992929]
[1724135146966,6.063278,2682.9,2682.4,9.95291]
[1724135147167,3.72752,2682.8,2682.5,0.80340336]
[1724135147368,3.72752,2682.8,2682.5,0.21025392]
[1724135147603,3.72759,2682.7,2682.2,9.86321]
[1724135147812,3.72759,2682.7,2682.3,0.80342876]
[1724135148017,3.72759,2682.7,2682.4,0.80342876]
[1724135148183,3.72759,2682.7,2682.5,0.21025392]
[1724135148395,3.72759,2682.7,2682.2,9.86321]
[1724135148565,7.75489,2682.7,2682.3,0.80342282]
[1724135148765,7.75489,2682.7,2682.4,0.80342282]
[1724135148962,12.7080888,2682.7,2682.3,0.21047037]
[1724135149237,5.29086,2682.5,2682.4,0.21036214]
[1724135149441,5.29086,2682.5,2682.0,11.14847]
[1724135149442,5.29086,2682.5,2682.0,7.42]
[1724135149583,5.29086,2682.5,2681.6,6.84780327]
[1724135149584,3.7283,2682.2,2682.1,0.21066829]
[1724135149931,3.7283,2682.2,2681.7,1.94431681]
[1724135150088,3.7283,2682.2,2682.1,0.21066829]
[1724135150291,6.276436,2682.2,2681.7,3.72897]
[1724135150595,1.563,2681.9,2681.8,0.8035225]
[1724135150812,1.563,2681.9,2681.7,3.72897]
[1724135151594,1.563,2682.1,2681.7,3.72897]
[1724135151932,1.563,2682.1,2681.9,2.3734]
[1724135152431,5.29126,2682.3,2681.9,2.3734]
[1724135153638,5.29126,2682.3,2681.8,3.72874]
[1724135153785,1.563,2682.1,2681.8,3.72874]
[1724135154412,3.72822,2682.3,2681.8,3.72874]
[1724135156106,3.72822,2682.3,2681.9,0.21094444]
[1724135161741,3.72822,2682.3,2681.9,3.93962444]
[1724135162039,3.72822,2682.3,2682.0,2.2947]
[1724135162539,3.72822,2682.3,2682.1,0.21072792]
[1724135162704,3.0,2682.6,2682.1,0.21072792]
[1724135162906,3.72764,2682.7,2682.2,3.72818]
[1724135163122,2.4563,2682.9,2682.3,2.4792]
[1724135163324,2.4563,2682.9,2682.3,2.68971143]
[1724135163325,6.18364,2682.9,2682.3,2.68971143]
[1724135163896,3.7278,2682.6,2682.3,0.21051143]
[1724135164343,7.45562,2682.6,2682.1,13.47281]
[1724135164513,7.45562,2682.6,2682.4,0.2104032]
[1724135164701,3.72786,2682.5,2682.1,9.7444]
[1724135165701,7.45562,2682.6,2682.1,9.7444]
[1724135165925,3.7278,2682.6,2682.1,9.7444]
[1724135166136,3.7278,2682.6,2682.1,13.47278]
[1724135166441,3.72891,2681.8,2681.3,7.42]
[1724135166599,3.72891,2681.8,2681.2,3.72958]
[1724135166929,7.45786,2681.8,2681.2,3.72958]
[1724135167131,3.72891,2681.8,2681.2,3.72958]
[1724135168252,3.72891,2681.8,2681.1,3.08027895]
[1724135168553,6.135991,2681.7,2681.1,2.2767]
[1724135169364,3.72914,2681.6,2681.1,2.2767]
[1724135170845,3.72914,2681.6,2681.1,6.00649]
[1724135171050,3.72914,2681.6,2681.2,0.21176315]
[1724135172255,3.0,2681.7,2681.2,0.21176315]
[1724135172403,6.72898,2681.7,2681.2,0.21176315]
[1724135172807,3.0,2681.7,2681.2,3.94140315]
[1724135173254,9.93074,2682.2,2681.2,0.21176315]
[1724135173558,3.0,2682.1,2681.7,3.72895]
[1724135173706,0.3,2682.0,2681.7,3.72895]
[1724135173911,3.0,2682.1,2681.8,0.21123264]
[1724135174247,3.0,2682.1,2681.5,5.98316]
[1724135174455,3.0,2682.1,2681.6,0.21144921]
[1724135174753,3.72897,2681.7,2681.6,0.21144921]
[1724135175309,3.72897,2681.7,2681.2,3.7296]
[1724135175522,3.72897,2681.7,2681.6,0.21142573]
[1724135175719,3.72885,2681.8,2681.2,7.45916]
[1724135175908,3.72885,2681.8,2681.6,0.21142671]
[1724135176142,3.72885,2681.8,2681.2,7.45916]
[1724135176457,3.72885,2681.8,2681.2,3.72958]
[1724135176638,3.72885,2681.8,2681.3,3.94126162]
[1724135176952,3.72846,2682.1,2681.3,0.21175162]
[1724135177111,6.7286,2682.0,2681.5,3.72922]
[1724135177649,3.72871,2681.9,2681.6,0.21142671]
[1724135178258,3.72871,2681.9,2681.7,0.21131842]
[1724135178561,3.72871,2681.9,2681.4,3.72937]
[1724135178709,3.72871,2681.9,2681.8,0.21121014]
[1724135178911,4.01406353,2682.0,2681.5,3.7292]
[1724135179150,3.0,2682.0,2681.8,0.21121014]
[1724135179374,6.72859,2682.0,2681.5,3.7292]
[1724135179583,6.72859,2682.0,2681.9,0.21110187]
[1724135179877,3.0,2682.0,2681.9,0.21110187]
[1724135180164,3.0,2682.0,2681.5,6.1105]
[1724135180376,3.0,2682.0,2681.9,0.21110187]
[1724135180681,3.0,2682.2,2681.8,3.72878]
[1724135180842,3.0,2682.2,2681.9,0.21108912]
[1724135182753,6.21674,2682.5,2681.9,3.93976912]
[1724135183024,9.94473,2682.5,2681.9,6.22396912]
[1724135183182,3.72767,2682.7,2681.9,2.49528912]
[1724135183344,3.72739,2682.9,2682.3,6.01222]
[1724135183551,7.45482,2682.9,2682.3,6.01222]
[1724135183852,3.72745,2682.8,2682.4,0.21052637]
[1724135184371,3.72734,2682.9,2682.4,3.93850637]
[1724135184577,3.72746,2682.8,2682.4,0.21052637]
[1724135189897,3.72761,2682.7,2682.4,0.21052637]
[1724135190255,3.72734,2682.9,2682.4,0.21052637]
[1724135190449,3.0,2682.8,2682.4,3.93851637]
[1724135191089,7.47912,2683.1,2682.4,3.93851637]
[1724135191090,3.72712,2683.1,2682.6,3.72771]
[1724135191385,3.72726,2683.0,2682.4,3.93841637]
[1724135191590,3.72726,2683.0,2682.7,0.21005897]
[1724135191789,4.772698,2683.0,2682.4,3.72789]
[1724135192103,3.72731,2682.9,2682.4,3.72789]
[1724135192387,3.72731,2682.9,2682.5,0.21027539]
[1724135192762,3.72731,2682.9,2682.5,3.93811539]
[1724135192966,3.72731,2682.9,2682.5,0.21027539]
[1724135193167,3.72712,2683.1,2682.5,0.21027539]
[1724135193358,3.0,2683.0,2682.5,3.93804539]
[1724135193551,6.7272,2683.0,2682.5,3.93804539]
[1724135196375,3.0,2683.0,2682.5,3.93804539]
[1724135196911,6.72719,2683.0,2682.5,3.93804539]
[1724135199320,6.72719,2683.0,2682.5,0.21027539]
[1724135199472,7.772621,2683.0,2682.5,0.21027539]
[1724135201119,7.772621,2683.0,2682.5,3.93812539]
[1724135201614,7.772621,2683.0,2682.5,0.21027539]
[1724135202291,3.72731,2682.9,2682.5,0.21027539]
[1724135203922,3.72731,2682.9,2682.5,3.93812539]